Cogmind - Beta 13 @@@ ROGUE MODE // 2024.04.20 @ 00:37:53 Player: GregoriusTechneticies Result: Destroyed by G-47 Trooper with Particle Gun Performance ------------- Evolutions (2) 1000 Regions Visited (3) 600 Robots Destroyed (55) 275 Value Destroyed (638) 638 Prototype IDs (1) 20 Alien Tech Used (0) 0 Bonus (0) 0 TOTAL SCORE: 2533 Bonus ------- None Cogmind --------- Core Integrity 0/550 Matter 209/300 Energy 99/100 System Corruption 0% Temperature Cool (9) Movement Core (250) Ox4 Location -8/Materials Parts ------- > --- POWER (1) -------- (None) > --- PROPULSION (2) --- (None) > --- UTILITY (6) ------ Medium Storage Unit Visual Processing Unit Terrain Scan Processor > --- WEAPON (2) ------- Autogun > --- INVENTORY (10) --- Flight Unit High-capacity Battery (250) Large Matter Pod (150) Sensor Array Signal Interpreter ECM Suite Light Assault Rifle Datajack Hammer Maul Peak State ------------ > --- POWER ------------ Heavy Ion Engine > --- PROPULSION ------- Wheel Wheel > --- UTILITY ---------- Medium Storage Unit Machine Analyzer Visual Processing Unit Improved Terrain Scanner Terrain Scan Processor Seismic Detector > --- WEAPON ----------- Heavy Assault Rifle Autogun > --- INVENTORY -------- Wheel High-capacity Battery Large Matter Pod Structural Scanner Sensor Array Signal Interpreter ECM Suite Datajack Hammer Maul [Rating: 22] Favorites ----------- Power Light Ion Engine Engine Light Ion Engine Propulsion Wheel Wheel Wheel Utility Seismic Detector Device Seismic Detector Storage Medium Storage Unit Processor Terrain Scan Processor Hackware Hacking Suite Weapon Assault Rifle Ballistic Gun Assault Rifle Special Weapon Mining Laser Impact Weapon Hammer Build | -11 -10 -9 -8 ------- Run | Yrd Mat Mat Mat Slots Evolved 4 | . . 2 2 Power . | . . . . Propulsion . | . . . . Utility 4 | . . 2 2 Weapon . | . . . . Parts Attached 50 | 12 7 15 16 Power 5 | 1 1 3 . Engine 5 | 1 1 3 . Core . | . . . . Reactor . | . . . . Propulsion 14 | 5 3 5 1 Treads . | . . . . Leg . | . . . . Wheel 14 | 5 3 5 1 Hover . | . . . . Flight . | . . . . Utility 13 | 3 1 3 6 Device 5 | 2 . 1 2 Storage 2 | 1 1 . . Processor 5 | . . 2 3 Hackware 1 | . . . 1 Protection . | . . . . Artifact . | . . . . Weapon 18 | 3 2 4 9 Energy Gun . | . . . . Energy Cannon . | . . . . Ballistic Gun 12 | 3 1 1 7 Ballistic Cannon . | . . . . Launcher . | . . . . Special Weapon 1 | . 1 . . Impact Weapon 5 | . . 3 2 Slashing Weapon . | . . . . Piercing Weapon . | . . . . Special Melee Weapon . | . . . . Unidentified Prototypes 1 | . . 1 . Parts Lost 13 | . 1 2 10 Power 2 | . 1 . 1 Propulsion 2 | . . . 2 Utility 4 | . . . 4 Weapon 5 | . . 2 3 Highest Loss Streak 8 | . 1 1 8 To Critical Strikes . | . . . . Average Slot Usage (%) 92 | . 94 92 90 Engine 8 | . 9 8 8 Wheel 21 | . 28 22 14 Device 17 | . 14 22 16 Storage 11 | . 14 11 9 Processor 10 | . . 11 20 Hackware 2 | . . . 6 Ballistic Gun 16 | . 26 12 12 Impact Weapon 2 | . . 4 4 Naked Turns . | . . . . Heaviest Build 26 | 13 18 25 26 Greatest Support 32 | 32 20 20 20 Greatest Overweight (x) 8 | 3 . 1 8 Average Overweight (x) . | . . . 1 Largest Inventory Capacity 10 | 8 10 10 10 Average Capacity 9 | 7 9 10 10 Most Carried 10 | 8 10 10 10 Average Carried 8 | 5 9 9 9 Final Capacity 10 | 8 10 10 10 Final Carried 10 | 8 10 10 10 Class Distribution -------------------- 67% | Scavenger-Mutant 25% | Mutant 3% | Scavenger-Assassin Dominant Class ---------------- Scavenger-Mutant | -10/Materials Scavenger-Mutant | -9/Materials Scavenger-Mutant | -8/Materials Resources | -11 -10 -9 -8 ----------- Run | Yrd Mat Mat Mat Matter Collected 1697 | 544 654 296 203 Remotely . | . . . . Salvage Created 1645 | 353 621 381 290 Parts 121 | 25 40 29 27 Haulers Intercepted 2 | . 2 . . Recyclers Shooed 7 | . 6 1 . Parts Field Recycled . | . . . . Retrieved Matter . | . . . . Parts Self-Destructed . | . . . . Prevented . | . . . . Kills | -11 -10 -9 -8 ------- Run | Yrd Mat Mat Mat Combat Hostiles Destroyed 19 | . 7 6 6 Guns 18 | . 7 6 5 Classes Destroyed 11 | 3 5 1 2 Worker 9 | 4 2 1 2 Builder 8 | . 4 3 1 Tunneler 10 | 9 . . 1 Hauler 2 | . 2 . . Recycler 4 | 1 2 1 . Mechanic 2 | . 1 1 . Watcher 1 | . . 1 . Swarmer 10 | . 3 4 3 Grunt 6 | . 4 2 . Sentry 2 | . . . 2 Hunter 1 | . . . 1 Best Kill Streak 7 | 4 5 7 2 Combat Bots Only 4 | . 3 4 2 Max Kills in Single Turn 1 | 1 1 1 1 Gunslinging . | . . . . Exploded . | . . . . Melee . | . . . . Uniques/NPCs Destroyed . | . . . . Combat | -11 -10 -9 -8 -------- Run | Yrd Mat Mat Mat Hostile Shots Fired 268 | . 40 44 184 Missed 82 | . 11 14 57 Damage Taken 2105 | . 300 296 1509 Core 745 | . 94 90 561 Absorbed by Shields . | . . . . Core Remaining (%) 79 | 100 62 77 . Volleys Fired 161 | 29 67 35 30 Largest 2 | 2 2 2 2 Hottest 100 | 40 100 40 46 Shots Fired 287 | 58 127 56 46 Gun 280 | 58 120 56 46 Cannon . | . . . . Launcher . | . . . . Special 7 | . 7 . . Kinetic 280 | 58 120 56 46 Thermal 7 | . 7 . . Explosive . | . . . . Electromagnetic . | . . . . Robot Hit Streak 9 | 5 9 6 7 Robot Miss Streak 5 | 3 4 3 5 Penetration Max . | . . . . Secondary Targets 3 | . . 2 1 Max Gunslinging Chain 1 | . . 1 1 Shots Hit Robots 168 | 33 70 34 31 Core Hits 75 | 15 29 17 14 Critical Kills . | . . . . Critical Parts Destroyed 2 | . . 1 1 Critical Strikes 2 | . . 1 1 Smash 2 | . . 1 1 Melee Attacks 16 | . . 5 11 Impact 16 | . . 5 11 Slashing . | . . . . Piercing . | . . . . Sneak Attacks 2 | . . 1 1 Combat Hostiles . | . . . . Follow-up Attacks . | . . . . Damage Inflicted 2271 | 415 891 471 494 Guns 2143 | 415 891 425 412 Cannons . | . . . . Explosions . | . . . . Melee 122 | . . 40 82 Ramming 6 | . . 6 . Kinetic 2143 | 415 891 425 412 Thermal . | . . . . Explosive . | . . . . Electromagnetic . | . . . . Impact 122 | . . 40 82 Slashing . | . . . . Piercing . | . . . . Highest Corruption 2 | . . 2 . Average Corruption 2 | . . 2 . Corruption Purged . | . . . . Corruption Blocked . | . . . . Effects 2 | . . 2 . Message Errors 1 | . . 1 . Heat Flow Errors 1 | . . 1 . Overload Shots . | . . . . Overflow Damage 68 | . . 40 28 Projectiles . | . . . . Explosions . | . . . . Melee 68 | . . 40 28 Knockbacks 1 | . . 1 . Impact 1 | . . 1 . Kinetic . | . . . . Secondary . | . . . . Self-Inflicted Damage 3 | . . 3 . Shots . | . . . . Rammed 2 | . . 2 . Targets Rammed 2 | . . 2 . Kicked . | . . . . Crushed . | . . . . Highest Temperature 159 | 6 60 159 25 Average Temperature 25 | 6 20 90 5 Received Heat Transfer 741 | . 150 105 486 Siege Activations . | . . . . Robots Corrupted . | . . . . Combat Hostiles . | . . . . Parts Fried 5 | . . 4 1 Impact Corruptions 3 | . . 2 1 Robots Melted . | . . . . Combat Hostiles . | . . . . Parts Melted . | . . . . Heat Transferred . | . . . . Parts Sabotaged . | . . . . Parts Stolen . | . . . . Parts Stripped . | . . . . Power Chain Reactions . | . . . . Alert | -11 -10 -9 -8 ------- Run | Yrd Mat Mat Mat Peak Influence 409 | 70 275 409 312 Initial 87 | . 45 33 87 Average 152 | 37 169 182 197 Maximum Alert Level 2 | . 1 2 1 Low Security (%) 66 | 100 64 47 60 Level 1 33 | . 35 51 39 Level 2 . | . . 1 . Level 3 . | . . . . Level 4 . | . . . . Level 5 . | . . . . High Security . | . . . . Max Security . | . . . . Squads Dispatched 6 | . 1 2 3 Investigation 3 | . 1 1 1 Extermination . | . . . . Reinforcement 3 | . . 1 2 Assault . | . . . . Garrison . | . . . . Intercept . | . . . . Searches Triggered . | . . . . Construction Impeded 1 | . . 1 . Haulers Reinforced . | . . . . Active Scanning Responses . | . . . . Cargo Convoy Interrupts . | . . . . Stealth | -11 -10 -9 -8 --------- Run | Yrd Mat Mat Mat Distress Signals 9 | . 2 3 4 Communications Jammed . | . . . . Distress Signals . | . . . . Times Spotted 62 | . 14 20 28 Peak Tracking Total 18 | . 5 8 18 Tactical Retreats 9 | . . 6 3 Traps | -11 -10 -9 -8 ------- Run | Yrd Mat Mat Mat Traps Triggered 1 | . . . 1 Indirectly . | . . . . Trap Hack Attempts . | . . . . Triggered . | . . . . Disarmed . | . . . . Reprogrammed . | . . . . Reused . | . . . . Traps Extracted . | . . . . Installed . | . . . . Triggered . | . . . . Machines | -11 -10 -9 -8 ---------- Run | Yrd Mat Mat Mat Machines Disabled . | . . . . Max in Single Turn . | . . . . Machines Repaired . | . . . . Machines Dismantled . | . . . . Machines Sabotaged . | . . . . Overloaded Fab Kills . | . . . . Hacking | -11 -10 -9 -8 --------- Run | Yrd Mat Mat Mat Machines Accessed 5 | . 2 1 2 Terminals 5 | . 2 1 2 Fabricators . | . . . . Repair Stations . | . . . . Recycling Units . | . . . . Scanalyzers . | . . . . Garrison Access . | . . . . Total Hacks 15 | . 6 2 7 Successful 4 | . 1 . 3 Failed 11 | . 5 2 4 Catastrophic . | . . . . Database Lockouts . | . . . . Manual 15 | . 6 2 7 Terminals 15 | . 6 2 7 Fabricators . | . . . . Repair Stations . | . . . . Recycling Units . | . . . . Scanalyzers . | . . . . Garrison Access . | . . . . Terminal Hacks 1 | . . . 1 Terminal Index 1 | . . . 1 Fabricator Hacks . | . . . . Repair Station Hacks . | . . . . Recycling Unit Hacks . | . . . . Scanalyzer . | . . . . Garrison Access Hacks . | . . . . Unauthorized Hacks 3 | . 1 . 2 Terminals 3 | . 1 . 2 Botnet 3 | . 1 . 2 Fabricators . | . . . . Repair Stations . | . . . . Recycling Units . | . . . . Scanalyzers . | . . . . Garrison Access . | . . . . Data Cores Recovered . | . . . . Used . | . . . . Hacking Detections 5 | . 2 1 2 Full Trace Events 3 | . 2 1 . Feedback Events . | . . . . Feedback Blocked . | . . . . Robot Schematics Acquired . | . . . . Robots Built . | . . . . Authchips . | . . . . Time . | . . . . Total Robot Build Rating . | . . . . Part Schematics Acquired . | . . . . Parts Built . | . . . . Authchips . | . . . . Time . | . . . . Total Part Build Rating . | . . . . Parts Repaired . | . . . . Time . | . . . . Parts Recycled . | . . . . Recycled Matter . | . . . . Retrieved Matter . | . . . . Retrieved Components . | . . . . Parts Scanalyzed . | . . . . Part Schematics Acquired . | . . . . Parts Damaged . | . . . . Bothacking | -11 -10 -9 -8 ------------ Run | Yrd Mat Mat Mat Used RIF Installer . | . . . . Robots Hacked . | . . . . Non-combat . | . . . . Combat . | . . . . Robot Hacks Applied . | . . . . Relay Couplers Released . | . . . . Fabnet Peak Effective % . | . . . . Robots Rewired . | . . . . Allies Hacked . | . . . . Hacks Repelled . | . . . . Allies | -11 -10 -9 -8 -------- Run | Yrd Mat Mat Mat Total Allies . | . . . . Largest Group . | . . . . Highest-Rated Group . | . . . . Highest-Rated Ally . | . . . . Total Orders . | . . . . Ally Attacks . | . . . . Total Damage . | . . . . Kills . | . . . . Allies Corrupted . | . . . . Allies Melted . | . . . . Intel | -11 -10 -9 -8 ------- Run | Yrd Mat Mat Mat Robot Analysis Total . | . . . . Derelict Logs Recovered . | . . . . Drone Launches . | . . . . Drone Recoveries . | . . . . Exploration | -11 -10 -9 -8 ------------- Run | Yrd Mat Mat Mat Turns Passed 1683 | 354 436 439 454 Spaces Moved 1052 | 226 243 340 243 Core 10 | 7 . . 3 Treads . | . . . . Legs . | . . . . Wheels 1042 | 219 243 340 240 Hover . | . . . . Flight . | . . . . Fastest Speed 50 | 50 80 80 95 Average Speed 85 | 83 80 81 100 Slowest Speed 450 | 200 80 95 450 Overloaded Moves . | . . . . Propulsion Burnouts . | . . . . Robots Hopped . | . . . . Cave-ins Triggered . | . . . . Exploration Rate (%) 27 | 8 30 36 36 Regions Visited 3 Branch Regions . Pre-discovered Areas . | . . . . Known Exits Taken . | . . . . Unknown Exits Taken 3 | 1 1 1 . Scrap Searched . | . . . . Spaces Dug 14 | . 7 2 5 Terrain Destroyed 14 | . 7 2 5 Melee 7 | . . 2 5 Projectile 7 | . 7 . . AOE . | . . . . Terrain Rammed . | . . . . Walls Destroyed . | . . . . Machines Disabled . | . . . . Actions | -11 -10 -9 -8 --------- Run | Yrd Mat Mat Mat Total 1525 | 336 355 440 394 Wait 154 | 44 8 26 76 Move 1049 | 225 242 339 243 Hop . | . . . . Pick Up 50 | 17 15 8 10 Fast Attach 11 | 6 . 2 3 Attach 10 | 1 . 4 5 Detach 1 | . . . 1 Swap 29 | 5 7 9 8 Drop 43 | 9 16 10 8 Fire 161 | 29 67 35 30 Melee 15 | . . 5 10 Ram 2 | . . 2 . Kick . | . . . . Crush . | . . . . Escape Stasis . | . . . . Rewire . | . . . . Trap . | . . . . Miscellaneous . | . . . . Route ------- -11/Scrapyard -10/Materials -9/Materials -8/Materials History --------- Turn | Location | Event 12 | -11/Scrapyard | Discovered new exit (range 15) 355 | -11/Scrapyard | Entered Materials 356 | -10/Materials | Build established: Mutant 772 | -10/Materials | Build established: Scavenger-Mutant 788 | -10/Materials | Discovered new exit (range 4) 791 | -10/Materials | Entered another Materials area 791 | -9/Materials | Evolved 2 slots: Utility x2 1216 | -9/Materials | Discovered new exit (range 16) 1230 | -9/Materials | Entered another Materials area 1230 | -8/Materials | Evolved 2 slots: Utility x2 1666 | -8/Materials | Core integrity fell below 50% 1676 | -8/Materials | Core integrity fell below 20% 1684 | -8/Materials | Destroyed by G-47 Trooper with Particle Gun Last Messages --------------- 01650_ Hacking Suite destroyed. 01651_ Hvy. Ion Engine destroyed. 01653_ Imp. Terrain Scanner destroyed. 01656_ Hvy. Assault Rifle destroyed. 01659_ Penetrated by Slug. 01660_ W-25 Informer sends out distress signal. 01665_ Penetrated by Slug. 01667_ Critical hit (Burn: +37). 01668_ Penetrated by Slug. 01669_ Hvy. Assault Rifle destroyed. 01670_ W-25 Informer sends out distress signal. 01674_ Slug penetrates Wall. 01674_ S-10 Pest destroyed. 01675_ H-55 Commando destroyed. 01677_ Autogun destroyed. 01677_ Acquired Flight Unit. 01681_ K-01 Serf collects debris. 01681_ W-25 Informer sends out distress signal. 01682_ Critical hit (Burn: +37). 01683_ Acquired Lgt. Assault Rifle. Map ----- +----------------------------------------------------+ | """ # "T" ?? ?????????????????????????????? | | """ # ??????????????????????????????? | | """ # ?????????????????????????????? | | # ###+????????????????????????????? | | ####### #??? ???????????????????????????? | | ?#?#??# # ?????????????????????????????? | | ##?##?# #???????????????????????????????? | | ?##??## """ #???????????????????????????????? | | ####### """ #????? ? ???????????????????????? | | ? ? # """ #??????? ???????????????????????? | | ??""" # ?? ## ???""? ?#?????????????????????? | | ? """ # ? ? ##?????"" ???????????????????????? | | ??"""?# """?? #?? ??? ???????????????????????? | | ???? ? """ ?? #?#????#?/???????????????????????? | | ??""" ? """? ? ?#????#?w?#?????????????????????? | | ??"""?? ??? ??# ?? ? ?????##????????????????? | | ??"""????? ?? ?##?""?#o##########??? ?????????? | | ?????????######+### ""?# ###+#?????????? | | ????#?#???# #?"T # ??????????? | | ????# ?? # """ #?""?# g b ??????????? | | ????# ? # "R #?"" # ???????????? | | ??#?# # """ #??? # g ??????????????? | | ????# ? + "" # ? ?+ w#???? ???????????? | | ??#?# ????# ######=gk #?##???"??????????? | | ??#?# ?##?# +*%s=[% g g #???? ????????????? | | ###?# ?#??# ####= @ # #??##?????????????? | | ##??# ???## ##?#%[! #???#??? ???????????? | | ##??# ????#######"###?#!* !# ???#? ????????????? | | ##### ##########"##?#?##!!!!##?#?????????????????? | | ### # [ ##?########? #?#?#?????????????? | | ### # =#?????#####?????? ?????????????? | | ! + "T" = #?#?#?#??????#?????????????????? | | ### # !##?#??#??#???#????"????????????? | | ### #/#########?????#?##?? ??#???????????????? | | ## ##?#??#?? ?? ??##? ?#?#??????????????? | | ## ##??#??#? ????? ?#?????#??????????????? | | ## ###?????# "?" ???# ??#???????????????? | | ## #########??#? ????? #? ? ?????????????????? | | ## # ##? ??? ? ???? ??????????????????? | | ##### ## """##?? ""? ????????????????????????? | | ### ## """##???""?? ???????????????????????? | | #%### ## """#?????"??????????????????????????? | | # ### ## #?# ? ? ????????????????????????? | | # ### ## """#??#?????????????????????????????? | | # ### ## """##?#?????????????????????????????? | | # ### ## """#????????????????????????????????? | | # ### ## #?#??????????????????????????????? | | # ###/###"##"####?#?????? ???????????????????????? | | # # # ####?##?#? ????????????????????????? | | # ## # ####??????"""??????????????????????? | +----------------------------------------------------+ Best States ------------- Heat Dissipation 31 Energy Generation 14 Energy Capacity 280 Matter Stores 300 Matter Capacity 300 Sight Range 18 Terrain Scan Range 16 Terrain Scan Density 85 Evasion (%) 44 Offensive Hacking 10 Item Schematics ----------------- None Robot Schematics ------------------ None Fabricated ------------ Nothing Alien Tech Used ----------------- None Achievements -------------- None Challenges ------------ None Game ------ Seed FusionThunderSuite Manual? 0 Play Time 00:26:07 Cumulative 42.6 hours Start 2024.04.20 @ 00:12:08 End 2024.04.20 @ 00:37:53 Sessions 1 Manual Loads 0 Difficulty Rogue Special Mode None Game No. 62 Rogue 47 Adventurer 0 Explorer 15 Win Type - Total 0 Types 0/0/0/0/0/0/0/0/0 Lore% 25 Gallery% 35 Achievement% 26 Wizard Run 0 Options --------- Layout 1 ASCII 0 Keyboard 0 Movement Mouse Keybinds 0 Fullscreen 1 Font 24/Smallcaps Map View 50x35 Zoom Use 0% Tactical HUD 1 Map Filters NONE Filters NONE Steam 1 RUN: d03095f8-a658-444b-977d-03b015b3c10e